[Event "ONJK 2024 ABC"]
[Site "Velp, Netherlands"]
[Date "2024.08.05"]
[Round "4.1"]
[White "Elferink, Leon"]
[Black "Leenen, Boyd"]
[Result "1-0"]
[TimeControl "90 minutes + 30 seconds"]
[WhiteElo "1900"]
[BlackElo "1921"]

1. e4 {[%clk 01:30:57]} {[%emt 00:00:02]} e5 {[%clk 01:30:50]} {[%emt
00:00:11]} 2. Nf3 {[%clk 01:31:10]} {[%emt 00:00:16]} Nc6 {[%clk 01:31:14]}
{[%emt 00:00:06]} 3. Bb5 {[%clk 01:31:14]} {[%emt 00:00:26]} a6 {[%clk
01:31:35]} {[%emt 00:00:08]} 4. Ba4 {[%clk 01:31:36]} {[%emt 00:00:08]} Nf6
{[%clk 01:31:56]} {[%emt 00:00:09]} 5. O-O {[%clk 01:30:38]} {[%emt 00:01:28]}
b5 {[%clk 01:32:07]} {[%emt 00:00:20]} 6. Bb3 {[%clk 01:31:01]} {[%emt
00:00:07]} Be7 {[%clk 01:32:23]} {[%emt 00:00:13]} 7. Re1 {[%clk 01:27:55]}
{[%emt 00:03:35]} d6 {[%clk 01:31:55]} {[%emt 00:01:00]} 8. a4 {[%clk
01:23:04]} {[%emt 00:05:21]} Bg4 {[%clk 01:26:52]} {[%emt 00:05:32]} 9. c3
{[%clk 01:11:42]} {[%emt 00:11:53]} Na5 {[%clk 01:22:34]} {[%emt 00:04:48]} 10.
Bc2 {[%clk 01:06:02]} {[%emt 00:06:10]} c5 {[%clk 01:20:36]} {[%emt 00:02:28]}
11. d3 {[%clk 01:02:55]} {[%emt 00:03:38]} O-O {[%clk 01:19:18]} {[%emt
00:01:46]} 12. Nbd2 {[%clk 01:02:19]} {[%emt 00:01:07]} h6 {[%clk 01:16:51]}
{[%emt 00:02:57]} 13. h3 {[%clk 01:01:06]} {[%emt 00:01:43]} Be6 {[%clk
01:15:48]} {[%emt 00:01:32]} 14. Nf1 {[%clk 00:58:20]} {[%emt 00:03:17]} Qc7
{[%clk 01:13:51]} {[%emt 00:02:26]} 15. d4 {[%clk 00:51:36]} {[%emt 00:07:15]}
Rfc8 {[%clk 01:08:41]} {[%emt 00:05:41]} 16. Ne3 {[%clk 00:47:58]} {[%emt
00:04:07]} cxd4 {[%clk 01:01:14]} {[%emt 00:07:57]} 17. cxd4 {[%clk 00:48:22]}
{[%emt 00:00:06]} Nc4 {[%clk 00:53:43]} {[%emt 00:08:01]} 18. Bd3 {[%clk
00:47:52]} {[%emt 00:01:00]} Qb7 {[%clk 00:45:49]} {[%emt 00:08:24]} 19. d5
{[%clk 00:42:22]} {[%emt 00:06:01]} Bd7 {[%clk 00:45:36]} {[%emt 00:00:43]} 20.
axb5 {[%clk 00:40:36]} {[%emt 00:02:17]} axb5 {[%clk 00:39:31]} {[%emt
00:06:35]} 21. Rxa8 {[%clk 00:40:00]} {[%emt 00:01:05]} Qxa8 {[%clk 00:39:30]}
{[%emt 00:00:32]} 22. b3 {[%clk 00:38:02]} {[%emt 00:02:28]} Nb6 {[%clk
00:38:19]} {[%emt 00:01:39]} 23. Qe2 {[%clk 00:35:59]} {[%emt 00:02:33]} Rc3
{[%clk 00:33:11]} {[%emt 00:05:35]} 24. Bxb5 {[%clk 00:35:16]} {[%emt
00:01:17]} Rxb3 {[%clk 00:32:09]} {[%emt 00:01:32]} 25. Bxd7 {[%clk 00:35:39]}
{[%emt 00:00:08]} Nbxd7 {[%clk 00:32:20]} {[%emt 00:00:19]} 26. Qc2 {[%clk
00:33:37]} {[%emt 00:02:30]} Nc5 {[%clk 00:30:57]} {[%emt 00:01:54]} 27. Nd2
{[%clk 00:30:36]} {[%emt 00:03:32]} Rb7 {[%clk 00:29:24]} {[%emt 00:02:01]} 28.
Nf5 {[%clk 00:30:37]} {[%emt 00:00:30]} Bf8 {[%clk 00:29:26]} {[%emt 00:00:29]}
29. Nc4 {[%clk 00:30:36]} {[%emt 00:00:32]} Qa6 {[%clk 00:28:16]} {[%emt
00:01:33]} 30. Ba3 {[%clk 00:28:30]} {[%emt 00:02:41]} Rc7 {[%clk 00:27:05]}
{[%emt 00:01:42]} 31. Bxc5 {[%clk 00:28:24]} {[%emt 00:00:36]} Rxc5 {[%clk
00:27:20]} {[%emt 00:00:14]} 32. Nfe3 {[%clk 00:28:42]} {[%emt 00:00:12]} Nd7
{[%clk 00:25:41]} {[%emt 00:02:08]} 33. Qb3 {[%clk 00:26:13]} {[%emt 00:03:01]}
Rb5 {[%clk 00:25:19]} {[%emt 00:00:51]} 34. Qa3 {[%clk 00:22:40]} {[%emt
00:04:04]} Qxa3 {[%clk 00:24:15]} {[%emt 00:01:33]} 35. Nxa3 {[%clk 00:23:05]}
{[%emt 00:00:05]} Rb3 {[%clk 00:23:58]} {[%emt 00:00:46]} 36. Nac4 {[%clk
00:23:08]} {[%emt 00:00:29]} Rb4 {[%clk 00:23:19]} {[%emt 00:01:07]} 37. Ra1
{[%clk 00:23:16]} {[%emt 00:00:23]} Nb6 {[%clk 00:23:29]} {[%emt 00:00:17]} 38.
Nxb6 {[%clk 00:23:29]} {[%emt 00:00:21]} Rxb6 {[%clk 00:23:55]} {[%emt
00:00:03]} 39. Ra8 {[%clk 00:23:40]} {[%emt 00:00:19]} Rb1+ {[%clk 00:17:59]}
{[%emt 00:06:26]} 40. Kh2 {[%clk 00:23:54]} {[%emt 00:00:16]} Rb4 {[%clk
00:18:22]} {[%emt 00:00:07]} 41. Nf5 {[%clk 00:23:34]} {[%emt 00:00:49]} g6
{[%clk 00:17:12]} {[%emt 00:01:38]} 42. Nxd6 {[%clk 00:23:22]} {[%emt
00:00:45]} f6 {[%clk 00:14:40]} {[%emt 00:03:03]} 43. f3 {[%clk 00:23:08]}
{[%emt 00:00:43]} Rb6 {[%clk 00:13:04]} {[%emt 00:02:01]} 44. Nc4 {[%clk
00:22:43]} {[%emt 00:01:00]} Rb7 {[%clk 00:12:41]} {[%emt 00:00:54]} 45. Na5
{[%clk 00:21:55]} {[%emt 00:01:18]} Rd7 {[%clk 00:12:52]} {[%emt 00:00:16]} 46.
Nc6 {[%clk 00:21:39]} {[%emt 00:00:49]} h5 {[%clk 00:10:17]} {[%emt 00:03:05]}
47. Nd8 {[%clk 00:21:27]} {[%emt 00:00:42]} Bg7 {[%clk 00:09:38]} {[%emt
00:01:10]} 48. Ne6+ {[%clk 00:21:41]} {[%emt 00:00:15]} Kf7 {[%clk 00:09:47]}
{[%emt 00:00:21]} 49. Kg1 {[%clk 00:21:12]} {[%emt 00:00:59]} f5 {[%clk
00:09:55]} {[%emt 00:00:22]} 50. Ng5+ {[%clk 00:20:03]} {[%emt 00:01:39]} Kf6
{[%clk 00:09:53]} {[%emt 00:00:33]} 51. h4 {[%clk 00:20:13]} {[%emt 00:00:19]}
Bh6 {[%clk 00:10:00]} {[%emt 00:00:23]} 52. Ra6+ {[%clk 00:20:29]} {[%emt
00:00:14]} Kg7 {[%clk 00:10:17]} {[%emt 00:00:13]} 53. Re6 {[%clk 00:20:25]}
{[%emt 00:00:34]} fxe4 {[%clk 00:10:21]} {[%emt 00:00:27]} 54. fxe4 {[%clk
00:20:36]} {[%emt 00:00:18]} Bxg5 {[%emt 00:00:17]} 55. hxg5 {[%emt 00:00:05]}
Ra7 {[%clk 00:10:20]} {[%emt 00:00:10]} 56. Rxe5 {[%clk 00:20:59]} {[%emt
00:00:07]} Ra2 {[%clk 00:10:02]} {[%emt 00:00:48]} 57. d6 {[%clk 00:20:53]}
{[%emt 00:00:36]} Ra7 {[%clk 00:09:36]} {[%emt 00:00:55]} 58. Rc5 {[%clk
00:20:32]} {[%emt 00:00:51]} Kf8 {[%clk 00:09:48]} {[%emt 00:00:18]} 59. Rc8+
{[%clk 00:20:55]} {[%emt 00:00:07]} 1-0

[Event "ONJK 2024 ABC"]
[Site "Velp, Netherlands"]
[Date "2024.08.05"]
[Round "4.2"]
[White "Rogozyanskiy, Alexander"]
[Black "Musabayeva, Diana"]
[Result "0-1"]
[TimeControl "90 minutes + 30 seconds"]
[WhiteElo "1803"]
[BlackElo "1871"]

1. e4 {[%clk 01:30:57]} {[%emt 00:00:02]} c5 {[%clk 01:30:56]} {[%emt
00:00:05]} 2. Nf3 {[%clk 01:31:25]} {[%emt 00:00:03]} d6 {[%clk 01:31:22]}
{[%emt 00:00:03]} 3. d4 {[%clk 01:31:51]} {[%emt 00:00:05]} cxd4 {[%clk
01:31:48]} {[%emt 00:00:04]} 4. Nxd4 {[%clk 01:32:17]} {[%emt 00:00:04]} Nf6
{[%clk 01:32:08]} {[%emt 00:00:10]} 5. Nc3 {[%clk 01:32:44]} {[%emt 00:00:03]}
a6 {[%clk 01:32:32]} {[%emt 00:00:06]} 6. h3 {[%clk 01:33:10]} {[%emt
00:00:03]} e5 {[%clk 01:29:46]} {[%emt 00:03:16]} 7. Nb3 {[%clk 01:33:33]}
{[%emt 00:00:08]} Be6 {[%clk 01:28:25]} {[%emt 00:01:50]} 8. f4 {[%clk
01:34:01]} {[%emt 00:00:03]} exf4 {[%clk 01:23:17]} {[%emt 00:05:37]} 9. Bxf4
{[%clk 01:34:08]} {[%emt 00:00:23]} Be7 {[%clk 01:21:43]} {[%emt 00:02:04]} 10.
Qf3 {[%clk 01:34:00]} {[%emt 00:00:39]} Qc7 {[%clk 01:15:38]} {[%emt 00:06:35]}
11. O-O-O {[%clk 01:31:15]} {[%emt 00:03:14]} Nbd7 {[%clk 01:11:49]} {[%emt
00:04:20]} 12. g4 {[%clk 01:10:11]} {[%emt 00:21:35]} Ne5 {[%clk 01:06:26]}
{[%emt 00:05:52]} 13. Qf2 {[%clk 01:06:40]} {[%emt 00:04:02]} h6 {[%clk
01:02:15]} {[%emt 00:04:40]} 14. Nd4 {[%clk 01:04:06]} {[%emt 00:03:03]} O-O
{[%clk 00:58:56]} {[%emt 00:03:50]} 15. Nf5 {[%clk 00:59:07]} {[%emt 00:05:30]}
Bxf5 {[%clk 00:56:24]} {[%emt 00:03:02]} 16. exf5 {[%clk 00:58:10]} {[%emt
00:01:27]} b5 {[%clk 00:53:51]} {[%emt 00:03:03]} 17. Nd5 {[%clk 00:45:37]}
{[%emt 00:13:03]} Nxd5 {[%clk 00:49:53]} {[%emt 00:04:29]} 18. Rxd5 {[%clk
00:45:50]} {[%emt 00:00:16]} Rac8 {[%clk 00:48:00]} {[%emt 00:02:23]} 19. Rd2
{[%clk 00:28:24]} {[%emt 00:17:56]} Rfd8 {[%clk 00:42:17]} {[%emt 00:06:13]} 20.
Rg1 {[%clk 00:28:00]} {[%emt 00:00:55]} d5 {[%clk 00:36:13]} {[%emt 00:06:34]}
21. g5 {[%clk 00:26:39]} {[%emt 00:01:51]} hxg5 {[%clk 00:32:48]} {[%emt
00:03:55]} 22. Bxg5 {[%clk 00:26:54]} {[%emt 00:00:15]} f6 {[%clk 00:30:04]}
{[%emt 00:03:13]} 23. Be3 {[%clk 00:22:14]} {[%emt 00:05:11]} Nc4 {[%clk
00:22:54]} {[%emt 00:07:39]} 24. Bxc4 {[%clk 00:21:12]} {[%emt 00:01:33]} dxc4
{[%clk 00:23:02]} {[%emt 00:00:22]} 25. Rxd8+ {[%clk 00:19:11]} {[%emt
00:02:32]} Qxd8 {[%clk 00:21:18]} {[%emt 00:02:14]} 26. Qg2 {[%clk 00:16:17]}
{[%emt 00:03:23]} Bf8 {[%clk 00:20:40]} {[%emt 00:01:08]} 27. Bd2 {[%clk
00:10:49]} {[%emt 00:05:59]} Qd7 {[%clk 00:16:27]} {[%emt 00:04:43]} 28. Qg4
{[%clk 00:08:57]} {[%emt 00:02:21]} b4 {[%clk 00:10:50]} {[%emt 00:06:08]} 29.
Rd1 {[%clk 00:07:42]} {[%emt 00:01:44]} c3 {[%clk 00:08:22]} {[%emt 00:02:58]}
30. Bxc3 {[%clk 00:04:38]} {[%emt 00:03:34]} Qc6 {[%clk 00:07:20]} {[%emt
00:01:32]} 31. Rd3 {[%clk 00:04:09]} {[%emt 00:01:00]} bxc3 {[%clk 00:06:34]}
{[%emt 00:01:16]} 32. Rxc3 {[%clk 00:04:32]} {[%emt 00:00:06]} Qh1+ {[%clk
00:06:38]} {[%emt 00:00:26]} 33. Kd2 {[%clk 00:04:53]} {[%emt 00:00:10]} Qh2+
{[%clk 00:05:15]} {[%emt 00:01:53]} 34. Kd1 {[%clk 00:04:26]} {[%emt 00:00:57]}
Rxc3 {[%clk 00:04:10]} {[%emt 00:01:35]} 35. bxc3 {[%clk 00:04:50]} {[%emt
00:00:06]} Qh1+ {[%clk 00:04:23]} {[%emt 00:00:17]} 36. Ke2 {[%clk 00:04:38]}
{[%emt 00:00:42]} Qd5 {[%clk 00:04:34]} {[%emt 00:00:19]} 37. c4 {[%clk
00:04:29]} {[%emt 00:00:39]} Qe5+ {[%clk 00:04:24]} {[%emt 00:00:40]} 38. Kf3
{[%clk 00:03:08]} {[%emt 00:01:51]} Qc3+ {[%clk 00:04:17]} {[%emt 00:00:36]} 39.
Kg2 {[%clk 00:03:30]} {[%emt 00:00:09]} Qxc2+ {[%clk 00:04:28]} {[%emt
00:00:19]} 40. Kg3 {[%clk 00:03:55]} {[%emt 00:00:04]} Qd3+ {[%clk 00:03:27]}
{[%emt 00:01:31]} 41. Kh4 {[%clk 00:04:10]} {[%emt 00:00:17]} Bc5 {[%clk
00:02:34]} {[%emt 00:01:23]} 42. Kh5 {[%clk 00:04:35]} {[%emt 00:00:05]} Qd7
{[%clk 00:02:03]} {[%emt 00:01:00]} 43. Qe4 {[%clk 00:04:41]} {[%emt 00:00:24]}
Kh7 {[%clk 00:01:27]} {[%emt 00:01:06]} 44. Qc2 {[%clk 00:02:39]} {[%emt
00:02:33]} Kg8 {[%clk 00:01:07]} {[%emt 00:00:50]} 45. Qe4 {[%clk 00:02:59]}
{[%emt 00:00:10]} Kh7 {[%clk 00:01:24]} {[%emt 00:00:13]} 46. Qc2 {[%clk
00:03:26]} {[%emt 00:00:04]} Qd4 {[%clk 00:01:45]} {[%emt 00:00:09]} 47. Qe2
{[%clk 00:03:09]} {[%emt 00:00:47]} Qf4 {[%clk 00:01:28]} {[%emt 00:00:46]} 48.
Qg4 {[%clk 00:02:10]} {[%emt 00:01:29]} Qh6# {[%clk 00:01:18]} {[%emt
00:00:07]} 0-1

[Event "ONJK 2024 ABC"]
[Site "Velp, Netherlands"]
[Date "2024.08.05"]
[Round "4.3"]
[White "De Vries, Arjan"]
[Black "Decraene, Lotus"]
[Result "1-0"]
[TimeControl "90 minutes + 30 seconds"]
[WhiteElo "1843"]
[BlackElo "1799"]

1. e4 {[%clk 01:30:59]} {[%emt 00:00:01]} c5 {[%clk 01:30:51]} {[%emt
00:00:09]} 2. Nf3 {[%clk 01:31:25]} {[%emt 00:00:04]} d6 {[%clk 01:30:55]}
{[%emt 00:00:26]} 3. d4 {[%clk 01:31:51]} {[%emt 00:00:04]} cxd4 {[%clk
01:31:21]} {[%emt 00:00:04]} 4. Nxd4 {[%clk 01:32:17]} {[%emt 00:00:04]} Nf6
{[%clk 01:31:44]} {[%emt 00:00:07]} 5. Nc3 {[%clk 01:32:42]} {[%emt 00:00:04]}
a6 {[%clk 01:31:47]} {[%emt 00:00:28]} 6. Be3 {[%clk 01:33:07]} {[%emt
00:00:04]} e5 {[%clk 01:30:50]} {[%emt 00:01:28]} 7. Nb3 {[%clk 01:33:30]}
{[%emt 00:00:07]} Be6 {[%clk 01:30:32]} {[%emt 00:00:48]} 8. Qd2 {[%clk
01:33:49]} {[%emt 00:00:11]} Nc6 {[%clk 01:27:22]} {[%emt 00:03:39]} 9. O-O-O
{[%clk 01:33:00]} {[%emt 00:01:20]} b5 {[%clk 01:19:18]} {[%emt 00:08:34]} 10.
f3 {[%clk 01:32:01]} {[%emt 00:01:28]} Rc8 {[%clk 01:16:08]} {[%emt 00:03:41]}
11. g4 {[%clk 01:28:21]} {[%emt 00:04:10]} Qc7 {[%clk 00:52:58]} {[%emt
00:23:40]} 12. Kb1 {[%clk 01:26:06]} {[%emt 00:02:45]} Bc4 {[%clk 00:40:41]}
{[%emt 00:12:47]} 13. h4 {[%clk 01:22:51]} {[%emt 00:03:45]} Nd7 {[%clk
00:32:27]} {[%emt 00:08:44]} 14. g5 {[%clk 01:19:18]} {[%emt 00:04:02]} Nb6
{[%clk 00:29:47]} {[%emt 00:03:10]} 15. Qf2 {[%clk 01:13:14]} {[%emt 00:06:35]}
Rb8 {[%clk 00:26:44]} {[%emt 00:03:34]} 16. Bxb6 {[%clk 01:10:19]} {[%emt
00:03:24]} Qxb6 {[%clk 00:26:54]} {[%emt 00:00:20]} 17. Qxb6 {[%clk 01:10:34]}
{[%emt 00:00:15]} Rxb6 {[%clk 00:27:20]} {[%emt 00:00:04]} 18. Bxc4 {[%clk
01:10:13]} {[%emt 00:00:51]} bxc4 {[%clk 00:26:41]} {[%emt 00:01:09]} 19. Nd2
{[%clk 01:09:28]} {[%emt 00:01:15]} Na5 {[%clk 00:26:25]} {[%emt 00:00:45]} 20.
Nd5 {[%clk 01:08:58]} {[%emt 00:01:00]} Rb7 {[%clk 00:26:30]} {[%emt 00:00:24]}
21. c3 {[%clk 01:07:30]} {[%emt 00:01:59]} Be7 {[%clk 00:24:58]} {[%emt
00:02:03]} 22. Nf1 {[%clk 01:04:28]} {[%emt 00:03:31]} Kd7 {[%clk 00:21:52]}
{[%emt 00:03:36]} 23. Nfe3 {[%clk 01:04:09]} {[%emt 00:00:49]} Rhb8 {[%clk
00:17:33]} {[%emt 00:04:49]} 24. Rh2 {[%clk 01:04:34]} {[%emt 00:00:04]} Bf8
{[%clk 00:15:27]} {[%emt 00:02:37]} 25. Nb4 {[%clk 01:01:35]} {[%emt 00:03:29]}
Ra8 {[%clk 00:13:47]} {[%emt 00:02:10]} 26. Rd5 {[%clk 01:01:18]} {[%emt
00:00:47]} Nc6 {[%clk 00:13:09]} {[%emt 00:01:08]} 27. Nxc6 {[%clk 01:01:28]}
{[%emt 00:00:20]} Kxc6 {[%clk 00:13:01]} {[%emt 00:00:38]} 28. Nxc4 {[%clk
01:01:53]} {[%emt 00:00:05]} Kc7 {[%clk 00:11:20]} {[%emt 00:02:10]} 29. Rhd2
{[%clk 01:02:12]} {[%emt 00:00:11]} Rab8 {[%clk 00:11:12]} {[%emt 00:00:38]} 30.
b3 {[%clk 01:02:27]} {[%emt 00:00:15]} Rb5 {[%clk 00:10:15]} {[%emt 00:01:28]}
31. R5d3 {[%emt 00:03:29]} Rd8 {[%clk 00:08:33]} 32. Kc2 {[%clk 01:01:56]}
{[%emt 00:00:14]} Be7 {[%clk 00:04:39]} {[%emt 00:04:23]} 33. Ne3 {[%clk
01:00:53]} {[%emt 00:01:33]} Bf8 {[%clk 00:04:54]} {[%emt 00:00:16]} 34. b4
{[%clk 00:59:08]} {[%emt 00:02:14]} Rb7 {[%clk 00:01:51]} {[%emt 00:03:33]} 35.
a4 {[%clk 00:57:46]} {[%emt 00:01:53]} Rc8 {[%clk 00:00:52]} {[%emt 00:01:29]}
36. Kb3 {[%clk 00:57:28]} {[%emt 00:00:47]} Rd8 {[%clk 00:00:56]} {[%emt
00:00:27]} 37. c4 {[%clk 00:57:00]} {[%emt 00:00:58]} Rdb8 {[%clk 00:00:45]}
{[%emt 00:00:41]} 38. b5 {[%clk 00:57:24]} {[%emt 00:00:06]} a5 {[%clk
00:00:52]} {[%emt 00:00:23]} 39. c5 {[%clk 00:55:30]} {[%emt 00:02:24]} dxc5
{[%clk 00:00:33]} {[%emt 00:00:50]} 40. Kc4 {[%clk 00:55:47]} {[%emt 00:00:13]}
Kb6 {[%clk 00:00:48]} {[%emt 00:00:15]} 41. Rd7 {[%clk 00:55:36]} {[%emt
00:00:40]} Ka7 {[%clk 00:00:39]} {[%emt 00:00:40]} 42. Ng4 {[%clk 00:54:55]}
{[%emt 00:01:11]} f6 {[%clk 00:00:50]} {[%emt 00:00:19]} 43. gxf6 {[%clk
00:54:50]} {[%emt 00:00:35]} gxf6 {[%clk 00:01:14]} {[%emt 00:00:06]} 44. Nxf6
{[%clk 00:55:10]} {[%emt 00:00:10]} Be7 {[%clk 00:01:28]} {[%emt 00:00:15]} 45.
Ng4 {[%clk 00:55:28]} {[%emt 00:00:12]} Bxh4 {[%clk 00:01:05]} {[%emt
00:00:54]} 46. Nxe5 {[%clk 00:55:52]} {[%emt 00:00:06]} Bg5 {[%clk 00:01:08]}
{[%emt 00:00:28]} 47. Rg2 {[%clk 00:54:17]} {[%emt 00:02:04]} Rxd7 {[%clk
00:01:19]} {[%emt 00:00:19]} 48. Nxd7 {[%clk 00:54:41]} {[%emt 00:00:05]} Rd8
{[%clk 00:01:41]} {[%emt 00:00:08]} 49. Rxg5 {[%clk 00:54:56]} {[%emt
00:00:16]} Rxd7 {[%clk 00:02:06]} {[%emt 00:00:05]} 50. Kxc5 {[%clk 00:55:17]}
{[%emt 00:00:08]} Rc7+ {[%clk 00:02:18]} {[%emt 00:00:18]} 51. Kd4 {[%clk
00:55:25]} {[%emt 00:00:22]} Rf7 {[%clk 00:02:34]} {[%emt 00:00:15]} 52. Ke3
{[%clk 00:55:22]} {[%emt 00:00:33]} Rc7 {[%clk 00:02:51]} {[%emt 00:00:12]} 53.
e5 {[%clk 00:55:36]} {[%emt 00:00:17]} Kb6 {[%clk 00:03:07]} {[%emt 00:00:15]}
54. Rh5 {[%clk 00:54:48]} {[%emt 00:01:17]} Kc5 {[%clk 00:03:11]} {[%emt
00:00:27]} 55. Rh4 {[%clk 00:54:48]} {[%emt 00:00:29]} Re7 {[%clk 00:03:21]}
{[%emt 00:00:20]} 56. f4 {[%clk 00:55:09]} {[%emt 00:00:09]} Kb4 {[%clk
00:03:44]} {[%emt 00:00:08]} 57. f5+ {[%clk 00:55:28]} {[%emt 00:00:10]} Kb3
{[%clk 00:03:24]} {[%emt 00:00:50]} 58. Re4 {[%clk 00:55:53]} {[%emt 00:00:05]}
h5 {[%clk 00:03:34]} {[%emt 00:00:19]} 59. f6 {[%clk 00:56:14]} {[%emt
00:00:09]} Rf7 {[%clk 00:03:54]} {[%emt 00:00:11]} 60. e6 {[%clk 00:56:35]}
{[%emt 00:00:10]} Rxf6 {[%clk 00:04:20]} {[%emt 00:00:03]} 61. e7 {[%clk
00:57:01]} {[%emt 00:00:04]} h4 {[%clk 00:04:34]} {[%emt 00:00:16]} 62. e8=Q
{[%emt 00:00:07]} h3 {[%clk 00:04:55]} {[%emt 00:00:08]} 63. Qg8+ {[%clk
00:57:48]} {[%emt 00:00:07]} Ka3 {[%clk 00:05:19]} {[%emt 00:00:07]} 64. Qh8
{[%clk 00:58:03]} {[%emt 00:00:14]} 1-0